fUST/lending_fUST_20241123
["ID","MTS","AMOUNT","RATE_DAILY","PERIOD"]
[343113648,1732366244654,-500.0,0.0002,2]
[343113649,1732366244664,-2300.61,0.0002,2]
[343113650,1732366244673,-500.0,0.0002,2]
[343113651,1732366244681,-528.07,0.0002,2]
[343113652,1732366244688,-1538.6,0.0002,2]
[343113653,1732366244698,-1008.44,0.0002,2]
[343113654,1732366244705,-636.89,0.0002,2]
[343113655,1732366244713,-500.0,0.0002,2]
[343113656,1732366244720,-32000.29,0.0002,2]
[343113657,1732366244728,-672.04,0.0002,2]
[343113658,1732366244736,-534.97,0.0002,2]
[343113659,1732366244745,-626.8,0.0002,2]
[343113660,1732366244752,-291.46548294,0.0002,2]
[343113661,1732366244760,-500.0,0.0002,2]
[343113662,1732366244768,-500.0,0.0002,2]
[343113663,1732366244776,-500.0,0.0002,2]
[343113664,1732366244785,-635.09,0.0002,2]
[343113665,1732366244793,-500.0,0.0002,2]
[343113666,1732366244805,-706.69,0.0002,2]
[343113667,1732366244813,-500.0,0.0002,2]
[343113668,1732366244820,-500.0,0.0002,2]
[343113669,1732366244829,-500.0,0.0002,2]
[343113670,1732366244840,-1504.44,0.0002,2]
[343113671,1732366244847,-4470.66,0.0002,2]
[343113672,1732366244856,-1264.94,0.0002,2]
[343113673,1732366244865,-500.0,0.0002,2]
[343113674,1732366244874,-200.0,0.0002,2]
[343113675,1732366244882,-500.0,0.0002,2]
[343113676,1732366244890,-597.49,0.0002,2]
[343113677,1732366244897,-830.37,0.0002,2]
[343113678,1732366244906,-2510.69,0.0002,2]
[343113679,1732366244914,-500.0,0.0002,2]
[343113680,1732366244923,-1529.76,0.0002,2]
[343113681,1732366244931,-500.0,0.0002,2]
[343113682,1732366244956,-950.08,0.0002,2]
[343113683,1732366244966,-500.0,0.0002,2]
[343113684,1732366244975,-500.0,0.0002,2]
[343113685,1732366244985,-2119.31,0.0002,2]
[343113686,1732366244995,-618.96,0.0002,2]
[343113687,1732366245005,-882.37,0.0002,2]
[343113688,1732366245015,-500.0,0.0002,2]
[343113689,1732366245025,-1056.35,0.0002,2]
[343113690,1732366245035,-872.19,0.0002,2]
[343113691,1732366245045,-500.0,0.0002,2]
[343113692,1732366245055,-500.0,0.0002,2]
[343113693,1732366245065,-1217.38,0.0002,2]
[343113694,1732366245075,-500.0,0.0002,2]
[343113695,1732366245085,-576.84,0.0002,2]
[343113696,1732366245094,-7473.65,0.0002,2]
[343113697,1732366245106,-500.0,0.0002,2]
[343113698,1732366245118,-590.73,0.0002,2]
[343113699,1732366245130,-500.0,0.0002,2]
[343113700,1732366245140,-500.0,0.0002,2]
[343113701,1732366245150,-500.0,0.0002,2]
[343113702,1732366245159,-500.0,0.0002,2]
[343113703,1732366245168,-674.66,0.0002,2]
[343113704,1732366245178,-500.0,0.0002,2]
[343113705,1732366245187,-500.0,0.0002,2]
[343113706,1732366245199,-538.85,0.0002,2]
[343113707,1732366245212,-500.0,0.0002,2]
[343113708,1732366245222,-605.75,0.0002,2]
[343113709,1732366245231,-850.07,0.0002,2]
[343113710,1732366245240,-1816.65,0.0002,2]
[343113711,1732366245250,-13459.67,0.0002,2]
[343113712,1732366245259,-882.91,0.0002,2]
[343113713,1732366245268,-500.0,0.0002,2]
[343113714,1732366245279,-5328.25,0.0002,2]
[343113715,1732366245292,-738.33,0.0002,2]
[343113716,1732366245305,-700.55,0.0002,2]
[343113717,1732366245314,-500.0,0.0002,2]
[343113718,1732366245324,-575.52,0.0002,2]
[343113719,1732366245334,-4056.23,0.0002,2]
[343113720,1732366245343,-546.44,0.0002,2]
[343113721,1732366245354,-460.0,0.0002,2]
[343113722,1732366245363,-1127.26,0.0002,2]
[343113723,1732366245372,-500.0,0.0002,2]
[343113724,1732366245381,-716.22,0.0002,2]
[343113725,1732366245391,-889.01,0.0002,2]
[343113726,1732366245400,-500.0,0.0002,2]
[343113727,1732366245410,-1129.2,0.0002,2]
[343113728,1732366245419,-500.0,0.0002,2]
[343113729,1732366245429,-1000.0,0.00020021,2]
[343113730,1732366245438,-8619.73808653,0.00020087,2]
[343113731,1732366245450,-500.0,0.00020272,2]
[343113732,1732366245460,-500.0,0.00020273,2]
[343113733,1732366245470,-500.0,0.00020273,2]
[343113734,1732366245480,-500.0,0.00020273,2]
[343113735,1732366245489,-500.0,0.00020273,2]
[343113736,1732366245499,-500.0,0.00020273,2]
[343113737,1732366245509,-607.85,0.00020273,2]
[343113738,1732366245518,-1635.9,0.00020273,2]
[343113739,1732366245528,-526.37,0.00020273,2]
[343113740,1732366245537,-500.0,0.00020273,2]
[343113741,1732366245547,-500.0,0.00020273,2]
[343113742,1732366245557,-500.0,0.00020273,2]
[343113743,1732366245567,-748.76,0.00020273,2]
[343113744,1732366245576,-500.0,0.00020273,2]
[343113745,1732366245585,-578.27,0.00020273,2]
[343113746,1732366245595,-799.01,0.00020273,2]
[343113747,1732366245604,-660.9,0.00020273,2]
[343113748,1732366245613,-500.0,0.00020273,2]
[343113749,1732366245623,-500.0,0.00020273,2]
[343113750,1732366245632,-500.0,0.00020273,2]
[343113751,1732366245641,-1095.13,0.00020273,2]
[343113752,1732366245651,-500.0,0.00020273,2]
[343113753,1732366245661,-500.0,0.00020273,2]
[343113754,1732366245671,-500.0,0.00020273,2]
[343113755,1732366245680,-500.0,0.00020273,2]
[343113756,1732366245690,-660.43,0.00020273,2]
[343113757,1732366245701,-500.0,0.00020273,2]
[343113758,1732366245711,-744.79,0.00020273,2]
[343113759,1732366245720,-602.21,0.00020273,2]
[343113760,1732366245730,-302.7742362,0.00020273,2]
[343113761,1732366245739,-2349.5,0.00020273,2]
[343113762,1732366245749,-500.0,0.00020273,2]
[343113763,1732366245759,-2006.5,0.00020273,2]
[343113764,1732366245768,-1551.55,0.00020273,2]
[343113765,1732366245778,-500.0,0.00020273,2]
[343113766,1732366245790,-500.0,0.00020273,2]
[343113767,1732366245800,-1039.57,0.00020273,2]
[343113768,1732366245810,-1747.31,0.00020273,2]
[343113769,1732366245819,-1202.85,0.00020273,2]
[343113770,1732366245828,-1000.07,0.00020273,2]
[343113771,1732366245838,-686.29,0.00020273,2]
[343113772,1732366245848,-1081.0,0.00020273,2]
[343113774,1732366245858,-172.08638455,0.00020273,2]
[343113775,1732366245867,-500.0,0.00020273,2]
[343113777,1732366245878,-1439.48,0.00020273,2]
[343113779,1732366245888,-500.0,0.00020273,2]
[343113780,1732366245897,-604.53,0.00020273,2]
[343113781,1732366245907,-500.0,0.00020273,2]
[343113782,1732366245917,-500.0,0.00020273,2]
[343113784,1732366245926,-1113.01,0.00020273,2]
[343113786,1732366245936,-500.0,0.00020273,2]
[343113787,1732366245948,-910.06,0.00020273,2]
[343113788,1732366245958,-500.0,0.00020273,2]
[343113789,1732366245968,-500.0,0.00020273,2]
[343113790,1732366245977,-500.0,0.00020273,2]
[343113791,1732366245987,-500.0,0.00020273,2]
[343113792,1732366245996,-1063.52,0.00020273,2]
[343113793,1732366246006,-1125.44,0.00020273,2]
[343113794,1732366246015,-500.0,0.00020273,2]
[343113795,1732366246024,-999.35,0.00020273,2]
[343113796,1732366246034,-522.08,0.00020273,2]
[343113797,1732366246079,-1708.58,0.00020273,2]
[343113798,1732366246089,-500.0,0.00020273,2]
[343113799,1732366246098,-192.47583784,0.00020273,2]
[343113800,1732366246107,-1059.27,0.00020273,2]
[343113801,1732366246116,-552.4,0.00020273,2]
[343113802,1732366246126,-719.88,0.00020273,2]
[343113803,1732366246135,-615.14,0.00020273,2]
[343113805,1732366246144,-500.0,0.00020273,2]
[343113806,1732366246153,-1102.89,0.00020273,2]
[343113807,1732366246163,-581.08,0.00020273,2]
[343113808,1732366246172,-1792.59,0.00020273,2]
[343113809,1732366246181,-677.62,0.00020273,2]
[343113810,1732366246191,-512.42552618,0.00020273,2]
[343113811,1732366246202,-3879.56,0.00020273,2]
[343113812,1732366246212,-663.99,0.00020273,2]
[343113813,1732366246221,-500.0,0.00020273,2]
[343113814,1732366246231,-577.21,0.00020273,2]
[343113815,1732366246240,-500.0,0.00020273,2]
[343113816,1732366246250,-833.58,0.00020273,2]
[343113817,1732366246259,-1516.41,0.00020273,2]
[343113818,1732366246269,-500.0,0.00020273,2]
[343113819,1732366246278,-1060.44,0.00020273,2]
[343113820,1732366246287,-500.0,0.00020273,2]
[343113821,1732366246297,-500.0,0.00020273,2]
[343113822,1732366246307,-500.0,0.00020273,2]
[343113823,1732366246316,-638.51,0.00020273,2]
[343113824,1732366246326,-500.0,0.00020273,2]
[343113825,1732366246335,-885.71,0.00020273,2]
[343113826,1732366246345,-500.0,0.00020273,2]
[343113827,1732366246355,-500.0,0.00020273,2]
[343113828,1732366246364,-500.0,0.00020273,2]
[343113829,1732366246373,-500.0,0.00020273,2]
[343113830,1732366246383,-500.0,0.00020273,2]
[343113831,1732366246392,-516.19,0.00020273,2]
[343113832,1732366246402,-593.45,0.00020273,2]
[343113833,1732366246411,-1282.52,0.00020273,2]
[343113834,1732366246422,-500.0,0.00020273,2]
[343113835,1732366246431,-887.97,0.00020273,2]
[343113836,1732366246441,-500.0,0.00020273,2]
[343113837,1732366246453,-2300.61,0.00020273,2]
[343113838,1732366246463,-500.0,0.00020273,2]
[343113839,1732366246473,-528.07,0.00020273,2]
[343113840,1732366246482,-1538.6,0.00020273,2]
[343113841,1732366246492,-1008.44,0.00020273,2]
[343113842,1732366246502,-636.89,0.00020273,2]
[343113843,1732366246511,-500.0,0.00020273,2]
[343113844,1732366246521,-32000.29,0.00020273,2]
[343113845,1732366246530,-672.04,0.00020273,2]
[343113846,1732366246540,-534.97,0.00020273,2]
[343113847,1732366246549,-626.8,0.00020273,2]
[343113848,1732366246559,-500.0,0.00020273,2]
[343113849,1732366246568,-500.0,0.00020273,2]
[343113850,1732366246578,-500.0,0.00020273,2]
[343113851,1732366246587,-635.09,0.00020273,2]
[343113852,1732366246597,-417.76715308,0.00020273,2]
[343113854,1732366246606,-706.69,0.00020273,2]
[343113855,1732366246617,-500.0,0.00020273,2]
[343113856,1732366246626,-500.0,0.00020273,2]
[343113857,1732366246635,-500.0,0.00020273,2]
[343113858,1732366246643,-1504.44,0.00020273,2]
[343113859,1732366246653,-4470.66,0.00020273,2]
[343113860,1732366246663,-1264.94,0.00020273,2]
[343113861,1732366246672,-500.0,0.00020273,2]
[343113862,1732366246682,-200.0,0.00020273,2]
[343113863,1732366246691,-500.0,0.00020273,2]
[343113864,1732366246705,-597.49,0.00020273,2]
[343113865,1732366246715,-830.37,0.00020273,2]
[343113866,1732366246725,-2510.69,0.00020273,2]
[343113867,1732366246734,-500.0,0.00020273,2]
[343113868,1732366246744,-1529.76,0.00020273,2]
[343113869,1732366246753,-500.0,0.00020273,2]
[343113870,1732366246763,-950.08,0.00020273,2]
[343113871,1732366246772,-500.0,0.00020273,2]
[343113872,1732366246782,-500.0,0.00020273,2]
[343113873,1732366246791,-2119.31,0.00020273,2]
[343113874,1732366246805,-618.96,0.00020273,2]
[343113875,1732366246815,-882.37,0.00020273,2]
[343113876,1732366246824,-500.0,0.00020273,2]
[343113877,1732366246834,-1056.35,0.00020273,2]
[343113878,1732366246845,-872.19,0.00020273,2]
[343113879,1732366246855,-500.0,0.00020273,2]
[343113880,1732366246865,-500.0,0.00020273,2]
[343113881,1732366246878,-1217.38,0.00020273,2]
[343113882,1732366246887,-500.0,0.00020273,2]
[343113883,1732366246897,-576.84,0.00020273,2]
[343113884,1732366246907,-7473.65,0.00020273,2]
[343113885,1732366246917,-500.0,0.00020273,2]
[343113886,1732366246927,-590.73,0.00020273,2]
[343113887,1732366246937,-347.65414912,0.00020273,2]
[343113888,1732366246950,-500.0,0.00020273,2]
[343113889,1732366246960,-152.64006937,0.00020273,2]
[343113890,1732366246969,-500.0,0.00020273,2]
[343113891,1732366246979,-674.66,0.00020273,2]
[343113892,1732366246988,-500.0,0.00020273,2]
[343113893,1732366246997,-500.0,0.00020273,2]
[343113894,1732366247006,-538.85,0.00020273,2]
[343113895,1732366247015,-500.0,0.00020273,2]
[343113896,1732366247024,-605.75,0.00020273,2]
[343113897,1732366247033,-850.07,0.00020273,2]
[343113898,1732366247043,-1816.65,0.00020273,2]
[343113899,1732366247052,-13459.67,0.00020273,2]
[343113900,1732366247061,-882.91,0.00020273,2]
[343113901,1732366247071,-500.0,0.00020273,2]
[343113902,1732366247081,-5328.25,0.00020273,2]
[343113903,1732366247091,-738.33,0.00020273,2]
[343113904,1732366247100,-700.55,0.00020273,2]
[343113905,1732366247110,-500.0,0.00020273,2]
[343113906,1732366247120,-575.52,0.00020273,2]
[343113907,1732366247130,-4056.23,0.00020273,2]
[343113908,1732366247139,-546.44,0.00020273,2]
[343113909,1732366247148,-1127.26,0.00020273,2]
[343113910,1732366247158,-500.0,0.00020273,2]
[343113911,1732366247167,-716.22,0.00020273,2]
[343113912,1732366247177,-889.01,0.00020273,2]
[343113913,1732366247187,-500.0,0.00020273,2]
[343113914,1732366247196,-1129.2,0.00020273,2]
[343113915,1732366247211,-500.0,0.00020273,2]
[343113916,1732366247220,-284.69884607,0.00020381,2]
[343113917,1732366247231,-181.915938,0.00020447,2]
[343113918,1732366247244,-330.0,0.00020447,2]
[343113919,1732366247254,-754.8,0.00020521,2]
[343113920,1732366247266,-1000.0,0.00020521,2]
[343113921,1732366247277,-328.84,0.00020538,3]
[343113922,1732366247287,-500.0,0.00020547,2]
[343113924,1732366247298,-500.0,0.00020547,2]
[343113926,1732366247308,-500.0,0.00020547,2]
[343113927,1732366247319,-500.0,0.00020547,2]
[343113929,1732366247329,-286.41726429,0.00020547,2]
[343113930,1732366247340,-607.85,0.00020547,2]
[343113932,1732366247350,-1635.9,0.00020547,2]
[343113933,1732366247360,-526.37,0.00020547,2]
[343113935,1732366247370,-500.0,0.00020547,2]
[343113936,1732366247380,-500.0,0.00020547,2]
[343113937,1732366247389,-500.0,0.00020547,2]
[343113938,1732366247398,-748.76,0.00020547,2]
[343113939,1732366247408,-500.0,0.00020547,2]
[343113940,1732366247418,-578.27,0.00020547,2]
[343113941,1732366247427,-799.01,0.00020547,2]
[343113942,1732366247437,-660.9,0.00020547,2]
[343113943,1732366247446,-500.0,0.00020547,2]
[343113944,1732366247464,-500.0,0.00020547,2]
[343113945,1732366247473,-269.22517053,0.00020547,2]
[343113946,1732366247483,-1095.13,0.00020547,2]
[343113947,1732366247492,-500.0,0.00020547,2]
[343113948,1732366247501,-500.0,0.00020547,2]
[343113949,1732366247511,-500.0,0.00020547,2]
[343113950,1732366247521,-500.0,0.00020547,2]
[343113951,1732366247531,-660.43,0.00020547,2]
[343113952,1732366247540,-607.34732323,0.00020547,2]
[343113953,1732366247550,-744.79,0.00020547,2]
[343113954,1732366247559,-602.21,0.00020547,2]
[343113955,1732366247569,-2349.5,0.00020547,2]
[343113956,1732366247579,-220.92259049,0.00020547,2]
[343113957,1732366247588,-2006.5,0.00020547,2]
[343113958,1732366247598,-1551.55,0.00020547,2]
[343113959,1732366247607,-500.0,0.00020547,2]
[343113960,1732366247617,-500.0,0.00020547,2]
[343113961,1732366247627,-1039.57,0.00020547,2]
[343113962,1732366247636,-1747.31,0.00020547,2]
[343113963,1732366247646,-1202.85,0.00020547,2]
[343113964,1732366247655,-1000.07,0.00020547,2]
[343113965,1732366247664,-686.29,0.00020547,2]
[343113966,1732366247674,-1081.0,0.00020547,2]
[343113967,1732366247683,-500.0,0.00020547,2]
[343113968,1732366247692,-1439.48,0.00020547,2]
[343113969,1732366247706,-500.0,0.00020547,2]
[343113970,1732366247716,-604.53,0.00020547,2]
[343113971,1732366247725,-379.02290327,0.00020547,2]
[343113972,1732366247735,-517.44041424,0.00020547,2]
[343113973,1732366247744,-1113.01,0.00020547,2]
[343113974,1732366247754,-500.0,0.00020547,2]
[343113975,1732366247765,-910.06,0.00020547,2]
[343113976,1732366247775,-509.79408223,0.00020547,2]
[343113977,1732366247785,-500.0,0.00020547,2]
[343113978,1732366247795,-500.0,0.00020547,2]
[343113979,1732366247809,-500.0,0.00020547,2]
[343113980,1732366247820,-1063.52,0.00020547,2]
[343113981,1732366247831,-1125.44,0.00020547,2]
[343113982,1732366247841,-500.0,0.00020547,2]
[343113983,1732366247852,-999.35,0.00020547,2]
[343113984,1732366247863,-522.08,0.00020547,2]
[343113985,1732366247874,-1708.58,0.00020547,2]
[343113986,1732366247886,-500.0,0.00020547,2]
[343113987,1732366247897,-1059.27,0.00020547,2]
[343113988,1732366247907,-552.4,0.00020547,2]
[343113989,1732366247917,-719.88,0.00020547,2]
[343113990,1732366247928,-615.14,0.00020547,2]
[343113991,1732366247940,-500.0,0.00020547,2]
[343113992,1732366247956,-1102.89,0.00020547,2]
[343113993,1732366247967,-581.08,0.00020547,2]
[343113994,1732366247979,-1792.59,0.00020547,2]
[343113995,1732366247990,-677.62,0.00020547,2]
[343113996,1732366248001,-3879.56,0.00020547,2]
[343113997,1732366248011,-663.99,0.00020547,2]
[343113998,1732366248024,-500.0,0.00020547,2]
[343113999,1732366248034,-577.21,0.00020547,2]
[343114000,1732366248047,-500.0,0.00020547,2]
[343114001,1732366248058,-833.58,0.00020547,2]
[343114002,1732366248069,-1516.41,0.00020547,2]
[343114003,1732366248079,-500.0,0.00020547,2]
[343114004,1732366248089,-1060.44,0.00020547,2]
[343114005,1732366248099,-500.0,0.00020547,2]
[343114006,1732366248109,-500.0,0.00020547,2]
[343114007,1732366248119,-500.0,0.00020547,2]
[343114008,1732366248130,-638.51,0.00020547,2]
[343114009,1732366248140,-500.0,0.00020547,2]
[343114010,1732366248150,-885.71,0.00020547,2]
[343114011,1732366248160,-500.0,0.00020547,2]
[343114012,1732366248169,-500.0,0.00020547,2]
[343114013,1732366248181,-500.0,0.00020547,2]
[343114014,1732366248192,-500.0,0.00020547,2]
[343114015,1732366248206,-500.0,0.00020547,2]
[343114016,1732366248216,-516.19,0.00020547,2]
[343114017,1732366248225,-593.45,0.00020547,2]
[343114018,1732366248235,-1282.52,0.00020547,2]
[343114019,1732366248245,-500.0,0.00020547,2]
[343114020,1732366248255,-887.97,0.00020547,2]
[343114021,1732366248265,-627.53210918,0.00020547,2]
[343114022,1732366248275,-2300.61,0.00020547,2]
[343114023,1732366248286,-500.0,0.00020547,2]
[343114024,1732366248296,-528.07,0.00020547,2]
[343114025,1732366248306,-1538.6,0.00020547,2]
[343114026,1732366248315,-1008.44,0.00020547,2]
[343114027,1732366248325,-636.89,0.00020547,2]
[343114028,1732366248335,-500.0,0.00020547,2]
[343114029,1732366248345,-32000.29,0.00020547,2]
[343114030,1732366248355,-672.04,0.00020547,2]
[343114031,1732366248364,-534.97,0.00020547,2]
[343114032,1732366248374,-626.8,0.00020547,2]
[343114033,1732366248383,-500.0,0.00020547,2]
[343114034,1732366248393,-500.0,0.00020547,2]
[343114035,1732366248403,-500.0,0.00020547,2]
[343114036,1732366248413,-635.09,0.00020547,2]
[343114037,1732366248423,-706.69,0.00020547,2]
[343114038,1732366248432,-500.0,0.00020547,2]
[343114039,1732366248443,-500.0,0.00020547,2]
[343114040,1732366248459,-500.0,0.00020547,2]
[343114041,1732366248469,-1504.44,0.00020547,2]
[343114042,1732366248482,-4470.66,0.00020547,2]
[343114043,1732366248492,-1264.94,0.00020547,2]
[343114044,1732366248502,-500.0,0.00020547,2]
[343114045,1732366248512,-200.0,0.00020547,2]
[343114046,1732366248522,-500.0,0.00020547,2]
[343114047,1732366248531,-597.49,0.00020547,2]
[343114048,1732366248542,-830.37,0.00020547,2]
[343114049,1732366248554,-2510.69,0.00020547,2]
[343114050,1732366248564,-500.0,0.00020547,2]
[343114051,1732366248574,-1529.76,0.00020547,2]
[343114052,1732366248584,-500.0,0.00020547,2]
[343114053,1732366248593,-950.08,0.00020547,2]
[343114054,1732366248603,-500.0,0.00020547,2]
[343114055,1732366248612,-500.0,0.00020547,2]
[343114056,1732366248622,-2119.31,0.00020547,2]
[343114057,1732366248632,-618.96,0.00020547,2]
[343114058,1732366248642,-882.37,0.00020547,2]
[343114059,1732366248651,-500.0,0.00020547,2]
[343114060,1732366248661,-1056.35,0.00020547,2]
[343114061,1732366248671,-872.19,0.00020547,2]
[343114062,1732366248682,-500.0,0.00020547,2]
[343114063,1732366248692,-500.0,0.00020547,2]
[343114064,1732366248706,-1217.38,0.00020547,2]
[343114065,1732366248715,-500.0,0.00020547,2]
[343114066,1732366248725,-576.84,0.00020547,2]
[343114067,1732366248735,-7473.65,0.00020547,2]
[343114068,1732366248745,-500.0,0.00020547,2]
[343114069,1732366248755,-590.73,0.00020547,2]
[343114070,1732366248766,-500.0,0.00020547,2]
[343114071,1732366248777,-500.0,0.00020547,2]
[343114072,1732366248790,-674.66,0.00020547,2]
[343114073,1732366248801,-268.96060271,0.00020547,2]
[343114074,1732366248812,-500.0,0.00020547,2]
[343114075,1732366248823,-538.85,0.00020547,2]
[343114076,1732366248835,-582.20451952,0.00020547,2]
[343114077,1732366248845,-605.75,0.00020547,2]
[343114078,1732366248856,-850.07,0.00020547,2]
[343114079,1732366248866,-1816.65,0.00020547,2]
[343114080,1732366248877,-13459.67,0.00020547,2]
[343114081,1732366248888,-882.91,0.00020547,2]
[343114082,1732366248898,-500.0,0.00020547,2]
[343114083,1732366248907,-5328.25,0.00020547,2]
[343114084,1732366248917,-738.33,0.00020547,2]
[343114085,1732366248926,-700.55,0.00020547,2]
[343114086,1732366248936,-500.0,0.00020547,2]
[343114087,1732366248946,-575.52,0.00020547,2]
[343114088,1732366248961,-4056.23,0.00020547,2]
[343114089,1732366248971,-546.44,0.00020547,2]
[343114090,1732366248980,-1127.26,0.00020547,2]
[343114091,1732366248991,-500.0,0.00020547,2]
[343114092,1732366249000,-716.22,0.00020547,2]
[343114093,1732366249011,-889.01,0.00020547,2]
[343114094,1732366249021,-500.0,0.00020547,2]
[343114095,1732366249032,-1129.2,0.00020547,2]
[343114096,1732366249041,-500.0,0.00020547,2]
[343114097,1732366249051,-610.25775938,0.00020579,2]
[343114098,1732366249060,-754.8,0.00020712,2]
[343114099,1732366249070,-840.41454946,0.00020722,2]
[343114100,1732366249079,-837.92481475,0.00020722,2]
[343114101,1732366249090,-500.0,0.00020821,2]
[343114102,1732366249100,-500.0,0.00020821,2]
[343114103,1732366249110,-500.0,0.00020821,2]
[343114104,1732366249119,-500.0,0.00020821,2]
[343114105,1732366249127,-607.85,0.00020821,2]
[343114106,1732366249135,-1635.9,0.00020821,2]
[343114107,1732366249142,-526.37,0.00020821,2]
[343114108,1732366249150,-484.50197059,0.00020821,2]
[343114109,1732366249159,-500.0,0.00020821,2]
[343114110,1732366249169,-500.0,0.00020821,2]
[343114111,1732366249179,-748.76,0.00020821,2]
[343114112,1732366249190,-500.0,0.00020821,2]
[343114113,1732366249200,-578.27,0.00020821,2]
[343114114,1732366249211,-799.01,0.00020821,2]
[343114115,1732366249224,-660.9,0.00020821,2]
[343114116,1732366249236,-500.0,0.00020821,2]
[343114117,1732366249247,-500.0,0.00020821,2]
[343114118,1732366249259,-1095.13,0.00020821,2]
[343114119,1732366249271,-500.0,0.00020821,2]
[343114120,1732366249283,-500.0,0.00020821,2]
[343114121,1732366249295,-500.0,0.00020821,2]
[343114122,1732366249307,-500.0,0.00020821,2]
[343114123,1732366249320,-660.43,0.00020821,2]
[343114124,1732366249331,-744.79,0.00020821,2]
[343114125,1732366249342,-602.21,0.00020821,2]
[343114126,1732366249353,-2349.5,0.00020821,2]
[343114127,1732366249364,-2006.5,0.00020821,2]
[343114128,1732366249374,-1551.55,0.00020821,2]
[343114129,1732366249385,-500.0,0.00020821,2]
[343114130,1732366249396,-500.0,0.00020821,2]
[343114131,1732366249407,-1039.57,0.00020821,2]
[343114132,1732366249417,-1747.31,0.00020821,2]
[343114133,1732366249427,-1202.85,0.00020821,2]
[343114134,1732366249437,-1000.07,0.00020821,2]
[343114135,1732366249447,-686.29,0.00020821,2]
[343114136,1732366249458,-1081.0,0.00020821,2]
[343114137,1732366249470,-500.0,0.00020821,2]
[343114138,1732366249481,-1439.48,0.00020821,2]
[343114139,1732366249492,-500.0,0.00020821,2]
[343114140,1732366249504,-604.53,0.00020821,2]
[343114141,1732366249515,-1113.01,0.00020821,2]
[343114142,1732366249526,-500.0,0.00020821,2]
[343114143,1732366249537,-910.06,0.00020821,2]
[343114144,1732366249548,-500.0,0.00020821,2]
[343114145,1732366249559,-500.0,0.00020821,2]
[343114146,1732366249569,-500.0,0.00020821,2]
[343114147,1732366249580,-1063.52,0.00020821,2]
[343114148,1732366249591,-1125.44,0.00020821,2]
[343114149,1732366249602,-344.84278096,0.00020821,2]
[343114150,1732366249612,-999.35,0.00020821,2]
[343114151,1732366249623,-522.08,0.00020821,2]
[343114152,1732366249634,-1708.58,0.00020821,2]
[343114153,1732366249644,-500.0,0.00020821,2]
[343114154,1732366249655,-1059.27,0.00020821,2]
[343114155,1732366249667,-552.4,0.00020821,2]
[343114156,1732366249679,-719.88,0.00020821,2]
[343114157,1732366249690,-615.14,0.00020821,2]
[343114158,1732366249706,-500.0,0.00020821,2]
[343114159,1732366249718,-1102.89,0.00020821,2]